fUSD/lending_fUSD_20250530
["ID","MTS","AMOUNT","RATE_DAILY","PERIOD"]
[363147093,1748598655356,-723.44,0.00022191,2]
[363147094,1748598655366,-889.32,0.00022191,2]
[363147095,1748598655376,-1025.35,0.00022191,2]
[363147096,1748598655386,-681.58,0.00022191,2]
[363147097,1748598655396,-420.0,0.00022191,2]
[363147098,1748598655406,-3611.43,0.00022191,2]
[363147099,1748598655416,-420.0,0.00022191,2]
[363147100,1748598655425,-420.0,0.00022191,2]
[363147101,1748598655436,-440.0,0.00022191,2]
[363147102,1748598655446,-420.0,0.00022191,2]
[363147103,1748598655455,-845.55,0.00022191,2]
[363147104,1748598655466,-420.0,0.00022191,2]
[363147105,1748598655476,-1616.8,0.00022191,2]
[363147106,1748598655486,-1468.84,0.00022191,2]
[363147107,1748598655497,-420.0,0.00022191,2]
[363147108,1748598655507,-1497.01,0.00022191,2]
[363147109,1748598655516,-420.0,0.00022191,2]
[363147110,1748598655526,-420.0,0.00022191,2]
[363147111,1748598655536,-420.0,0.00022191,2]
[363147112,1748598655547,-1558.76,0.00022191,2]
[363147113,1748598655558,-538.4,0.00022191,2]
[363147114,1748598655568,-561.64,0.00022191,2]
[363147115,1748598655579,-420.0,0.00022191,2]
[363147116,1748598655590,-1481.21,0.00022191,2]
[363147117,1748598655600,-420.0,0.00022191,2]
[363147118,1748598655611,-420.0,0.00022191,2]
[363147119,1748598655621,-506.4,0.00022191,2]
[363147120,1748598655632,-602.9,0.00022191,2]
[363147121,1748598655643,-420.0,0.00022191,2]
[363147122,1748598655652,-1986.16,0.00022191,2]
[363147123,1748598655681,-1184.89,0.00022191,2]
[363147124,1748598655691,-420.0,0.00022191,2]
[363147125,1748598655701,-160.0,0.00022191,2]
[363147126,1748598655711,-420.0,0.00022191,2]
[363147127,1748598655721,-3410.15,0.00022191,2]
[363147128,1748598655731,-795.53,0.00022191,2]
[363147129,1748598655740,-420.0,0.00022191,2]
[363147130,1748598655751,-445.41,0.00022191,2]
[363147131,1748598655764,-556.26,0.00022191,2]
[363147132,1748598655774,-420.0,0.00022191,2]
[363147133,1748598655784,-420.0,0.00022191,2]
[363147134,1748598655796,-434.36,0.00022191,2]
[363147135,1748598655807,-420.0,0.00022191,2]
[363147137,1748598655816,-1366.57,0.00022191,2]
[363147138,1748598655826,-1653.59,0.00022191,2]
[363147139,1748598655836,-420.0,0.00022191,2]
[363147140,1748598655847,-773.66,0.00022191,2]
[363147141,1748598655857,-1492.1,0.00022191,2]
[363147142,1748598655866,-420.0,0.00022191,2]
[363147143,1748598655876,-1089.14,0.00022191,2]
[363147144,1748598655886,-657.82,0.00022191,2]
[363147145,1748598655896,-1856.86,0.00022191,2]
[363147146,1748598655905,-420.0,0.00022191,2]
[363147147,1748598655915,-2074.1,0.00022191,2]
[363147148,1748598655924,-160.0,0.00022191,2]
[363147149,1748598655933,-420.0,0.00022191,2]
[363147150,1748598655943,-420.0,0.00022191,2]
[363147151,1748598655952,-160.0,0.00022191,2]
[363147152,1748598655962,-420.0,0.00022191,2]
[363147153,1748598655971,-606.68,0.00022191,2]
[363147154,1748598655981,-505.77,0.00022191,2]
[363147155,1748598655990,-420.0,0.00022191,2]
[363147156,1748598656000,-420.0,0.00022191,2]
[363147157,1748598656010,-9880.8,0.00022191,2]
[363147158,1748598656020,-1473.24,0.00022191,2]
[363147159,1748598656029,-420.0,0.00022191,2]
[363147160,1748598656039,-985.33,0.00022191,2]
[363147161,1748598656050,-674.05,0.00022191,2]
[363147162,1748598656060,-420.0,0.00022191,2]
[363147163,1748598656070,-160.0,0.00022191,2]
[363147164,1748598656080,-420.0,0.00022191,2]
[363147165,1748598656089,-5912.69,0.00022191,2]
[363147166,1748598656099,-1871.69275458,0.00022191,2]
[363147167,1748598656125,-2375.12724542,0.00022191,2]
[363147168,1748598656135,-420.0,0.00022191,2]
[363147169,1748598656145,-420.0,0.00022191,2]
[363147170,1748598656155,-420.0,0.00022191,2]
[363147171,1748598656165,-659.0,0.00022191,2]
[363147172,1748598656175,-278.71,0.00022191,2]
[363147173,1748598656184,-642.86,0.00022191,2]
[363147174,1748598656195,-160.0,0.00022191,2]
[363147175,1748598656206,-458.35,0.00022191,2]
[363147176,1748598656216,-10218.42,0.00022191,2]
[363147177,1748598656226,-3376.35,0.00022191,2]
[363147178,1748598656236,-420.0,0.00022191,2]
[363147179,1748598656246,-420.0,0.00022191,2]
[363147180,1748598656255,-420.0,0.00022191,2]
[363147181,1748598656265,-508.21527936,0.00022191,2]
[363147182,1748598656276,-420.0,0.00022191,2]
[363147183,1748598656286,-420.0,0.00022191,2]
[363147184,1748598656298,-977.25,0.00022191,2]
[363147185,1748598656307,-420.0,0.00022191,2]
[363147186,1748598656316,-569.22,0.00022191,2]
[363147187,1748598656326,-420.0,0.00022191,2]
[363147188,1748598656336,-775.23,0.00022191,2]
[363147189,1748598656346,-160.0,0.00022191,2]
[363147190,1748598656356,-3355.82,0.00022191,2]
[363147191,1748598656366,-420.0,0.00022191,2]
[363147192,1748598656376,-420.0,0.00022191,2]
[363147193,1748598656386,-1048.47,0.00022191,2]
[363147194,1748598656396,-733.79,0.00022191,2]
[363147195,1748598656407,-1386.56,0.00022191,2]
[363147196,1748598656417,-384.88494013,0.00022191,2]
[363147197,1748598656426,-487.43,0.00022191,2]
[363147198,1748598656435,-582.22,0.00022191,2]
[363147199,1748598656444,-420.0,0.00022191,2]
[363147200,1748598656452,-163.37657939,0.00022191,2]
[363147201,1748598656461,-2241.8,0.00022191,2]
[363147202,1748598656469,-3481.02,0.00022191,2]
[363147203,1748598656478,-160.0,0.00022191,2]
[363147204,1748598656487,-420.0,0.00022191,2]
[363147205,1748598656496,-875.67,0.00022191,2]
[363147206,1748598656507,-420.0,0.00022191,2]
[363147207,1748598656516,-420.0,0.00022191,2]
[363147208,1748598656526,-2540.05,0.00022191,2]
[363147209,1748598656535,-420.0,0.00022191,2]
[363147210,1748598656546,-926.63,0.00022191,2]
[363147211,1748598656555,-31417.21,0.00022191,2]
[363147212,1748598656565,-2468.73,0.00022191,2]
[363147213,1748598656574,-624.3,0.00022191,2]
[363147214,1748598656583,-420.0,0.00022191,2]
[363147215,1748598656593,-420.0,0.00022191,2]
[363147216,1748598656602,-420.0,0.00022191,2]
[363147217,1748598656612,-8089.18,0.00022191,2]
[363147218,1748598656621,-2970.33,0.00022191,2]
[363147219,1748598656631,-1474.1,0.00022191,2]
[363147220,1748598656641,-420.0,0.00022191,2]
[363147221,1748598656651,-420.0,0.00022191,2]
[363147222,1748598656661,-1481.01,0.00022191,2]
[363147223,1748598656671,-2031.66,0.00022191,2]
[363147224,1748598656682,-1714.35,0.00022191,2]
[363147225,1748598656692,-165.58666501,0.00022191,2]
[363147226,1748598656702,-420.0,0.00022191,2]
[363147227,1748598656711,-11466.81,0.00022191,2]
[363147228,1748598656721,-420.0,0.00022191,2]
[363147229,1748598656732,-559.75,0.00022191,2]
[363147230,1748598656742,-753.89,0.00022191,2]
[363147231,1748598656751,-1220.76,0.00022191,2]
[363147232,1748598656762,-420.0,0.00022191,2]
[363147233,1748598656775,-1262.66,0.00022191,2]
[363147234,1748598656784,-420.0,0.00022191,2]
[363147235,1748598656792,-420.0,0.00022191,2]
[363147236,1748598656801,-420.0,0.00022191,2]
[363147237,1748598656812,-771.62,0.00022191,2]
[363147238,1748598656822,-420.0,0.00022191,2]
[363147239,1748598656832,-1023.95,0.00022191,2]
[363147240,1748598656842,-160.0,0.00022191,2]
[363147241,1748598656852,-420.0,0.00022191,2]
[363147242,1748598656863,-1216.76,0.00022191,2]
[363147243,1748598656872,-1413.98,0.00022191,2]
[363147244,1748598656882,-517.72,0.00022191,2]
[363147245,1748598656892,-160.0,0.00022191,2]
[363147246,1748598656903,-420.0,0.00022191,2]
[363147247,1748598656912,-463.91382172,0.00022191,2]
[363147248,1748598656930,-571.35617828,0.00022191,2]
[363147249,1748598656940,-420.0,0.00022191,2]
[363147250,1748598656949,-5506.38019303,0.00022191,2]
[363147251,1748598656962,-1790.54980697,0.00022191,2]
[363147252,1748598656972,-431.13,0.00022191,2]
[363147253,1748598656981,-420.0,0.00022191,2]
[363147254,1748598656991,-420.0,0.00022191,2]
[363147255,1748598657001,-420.0,0.00022191,2]
[363147256,1748598657011,-420.0,0.00022191,2]
[363147257,1748598657021,-1418.23,0.00022191,2]
[363147258,1748598657031,-698.4,0.00022191,2]
[363147259,1748598657040,-3728.34,0.00022191,2]
[363147260,1748598657052,-1047.26,0.00022191,2]
[363147261,1748598657062,-420.0,0.00022191,2]
[363147262,1748598657071,-114.9286549,0.00022191,2]
[363147263,1748598657084,-582.1013451,0.00022191,2]
[363147264,1748598657093,-1028.59,0.00022191,2]
[363147265,1748598657103,-2526.26,0.00022191,2]
[363147266,1748598657112,-762.86,0.00022191,2]
[363147267,1748598657122,-420.0,0.00022191,2]
[363147268,1748598657132,-509.65481666,0.00022191,2]
[363147269,1748598657141,-420.0,0.00022191,2]
[363147270,1748598657151,-420.0,0.00022191,2]
[363147271,1748598657160,-5051.21063611,0.00022191,2]
[363147272,1748598657172,-709.92936389,0.00022191,2]
[363147273,1748598657181,-420.0,0.00022191,2]
[363147274,1748598657191,-1012.71,0.00022191,2]
[363147275,1748598657200,-4777.0,0.00022191,2]
[363147276,1748598657210,-1723.84,0.00022191,2]
[363147277,1748598657220,-1052.01,0.00022191,2]
[363147278,1748598657229,-420.0,0.00022191,2]
[363147279,1748598657239,-420.0,0.00022191,2]
[363147280,1748598657248,-688.75,0.00022191,2]
[363147281,1748598657258,-714.91,0.00022191,2]
[363147282,1748598657267,-420.0,0.00022191,2]
[363147283,1748598657277,-2924.79,0.00022191,2]
[363147284,1748598657287,-420.0,0.00022191,2]
[363147285,1748598657297,-870.91216491,0.00022191,2]
[363147286,1748598657309,-486.75783509,0.00022191,2]
[363147287,1748598657318,-1085.91,0.00022191,2]
[363147288,1748598657328,-4296.72343016,0.00022191,2]
[363147289,1748598657339,-12084.82183443,0.00022191,2]
[363147290,1748598657351,-4281.64473541,0.00022191,2]
[363147291,1748598657360,-801.8,0.00022191,2]
[363147292,1748598657370,-420.0,0.00022191,2]
[363147293,1748598657379,-792.69,0.00022191,2]
[363147294,1748598657389,-488.47,0.00022191,2]
[363147295,1748598657398,-420.0,0.00022191,2]
[363147296,1748598657408,-993.42,0.00022191,2]
[363147297,1748598657417,-420.0,0.00022191,2]
[363147298,1748598657427,-1841.97526459,0.00022191,2]
[363147299,1748598657936,-504.91878749,0.00021917,2]
[363147300,1748598657945,-1148.70473541,0.00022191,2]
[363147301,1748598657955,-420.0,0.00022191,2]
[363147302,1748598657965,-497.32,0.00022191,2]
[363147303,1748598657975,-420.0,0.00022191,2]
[363147304,1748598657984,-855.59,0.00022191,2]
[363147305,1748598657994,-420.0,0.00022191,2]
[363147306,1748598658004,-420.0,0.00022191,2]
[363147307,1748598658014,-1724.6,0.00022191,2]
[363147308,1748598658024,-702.25,0.00022191,2]
[363147309,1748598658034,-420.0,0.00022191,2]
[363147310,1748598658044,-420.0,0.00022191,2]
[363147311,1748598658054,-520.59,0.00022191,2]
[363147312,1748598658065,-3220.86,0.00022191,2]
[363147313,1748598658075,-7649.07,0.00022191,2]
[363147314,1748598658085,-3028.51,0.00022191,2]
[363147315,1748598658094,-167.66807418,0.00022191,2]
[363147316,1748598658104,-420.0,0.00022191,2]
[363147317,1748598658114,-864.49,0.00022191,2]
[363147318,1748598658124,-740.45,0.00022191,2]
[363147319,1748598658134,-3199.03,0.00022191,2]
[363147320,1748598658143,-1390.96,0.00022191,2]
[363147321,1748598658153,-449.4,0.00022191,2]
[363147322,1748598658163,-2392.97,0.00022191,2]
[363147323,1748598658172,-420.0,0.00022191,2]
[363147324,1748598658182,-1093.79,0.00022191,2]
[363147325,1748598658192,-1200.81,0.00022191,2]
[363147326,1748598658201,-522.17,0.00022191,2]
[363147327,1748598658211,-420.0,0.00022191,2]
[363147328,1748598658221,-201.05,0.00022191,2]
[363147329,1748598658231,-4293.89,0.00022191,2]
[363147330,1748598658241,-4714.37,0.00022191,2]
[363147331,1748598658250,-2205.06,0.00022191,2]
[363147332,1748598658260,-1985.41,0.00022191,2]
[363147333,1748598658270,-420.0,0.00022191,2]
[363147334,1748598658279,-9148.54,0.00022191,2]
[363147335,1748598658289,-2133.33,0.00022191,2]
[363147336,1748598658472,-1223.73,0.00022191,2]
[363147337,1748598658499,-420.0,0.00022191,2]
[363147338,1748598658508,-459.25,0.00022191,2]
[363147339,1748598658517,-1190.93,0.00022191,2]
[363147340,1748598658526,-420.0,0.00022191,2]
[363147341,1748598658535,-1638.84,0.00022191,2]
[363147342,1748598658545,-420.0,0.00022191,2]
[363147343,1748598658555,-1137.32,0.00022191,2]
[363147344,1748598658564,-4962.34,0.00022191,2]
[363147345,1748598658574,-420.0,0.00022191,2]
[363147346,1748598658583,-2474.61,0.00022191,2]
[363147347,1748598658593,-160.0,0.00022191,2]
[363147348,1748598658603,-4526.69,0.00022191,2]
[363147349,1748598658613,-864.7,0.00022191,2]
[363147350,1748598658622,-420.0,0.00022191,2]
[363147351,1748598658631,-420.0,0.00022191,2]
[363147352,1748598658640,-420.0,0.00022191,2]
[363147353,1748598658649,-420.0,0.00022191,2]
[363147354,1748598658658,-11381.36,0.00022191,2]
[363147355,1748598658668,-420.0,0.00022191,2]
[363147356,1748598658677,-489.66,0.00022191,2]
[363147357,1748598658687,-746.94,0.00022191,2]
[363147358,1748598658696,-420.0,0.00022191,2]
[363147359,1748598658705,-2839.63,0.00022191,2]
[363147360,1748598658715,-1717.04754655,0.00022191,2]
[363147361,1748598658733,-973.22245345,0.00022191,2]
[363147362,1748598658743,-1213.64,0.00022191,2]
[363147363,1748598658753,-1086.99,0.00022191,2]
[363147364,1748598658763,-420.0,0.00022191,2]
[363147365,1748598658777,-1138.21,0.00022191,2]
[363147366,1748598658787,-4250.45,0.00022191,2]
[363147367,1748598658798,-420.0,0.00022191,2]
[363147368,1748598658807,-1880.78,0.00022191,2]
[363147369,1748598658817,-1765.85,0.00022191,2]
[363147370,1748598658827,-656.15,0.00022191,2]
[363147371,1748598658837,-420.0,0.00022191,2]
[363147372,1748598658848,-587.94,0.00022191,2]
[363147373,1748598658858,-1037.46,0.00022191,2]
[363147374,1748598658868,-420.0,0.00022191,2]
[363147375,1748598658878,-1748.35,0.00022191,2]
[363147376,1748598658887,-1182.48493255,0.00022191,2]
[363147377,1748598658900,-260.36,0.00022191,2]
[363147378,1748598658913,-3718.94506745,0.00022191,2]
[363147379,1748598658922,-733.24,0.00022191,2]
[363147380,1748598658932,-614.66,0.00022191,2]
[363147381,1748598658942,-160.0,0.00022191,2]
[363147382,1748598658952,-420.0,0.00022191,2]
[363147383,1748598658962,-427.19,0.00022191,2]
[363147384,1748598658972,-420.0,0.00022191,2]
[363147385,1748598658982,-690.23,0.00022191,2]
[363147386,1748598658993,-925.14,0.00022191,2]
[363147387,1748598659004,-663.93,0.00022191,2]
[363147388,1748598659014,-420.0,0.00022191,2]
[363147389,1748598659024,-420.0,0.00022191,2]
[363147390,1748598659034,-3678.28,0.00022191,2]
[363147391,1748598659044,-544.04,0.00022191,2]
[363147392,1748598659054,-971.59,0.00022191,2]
[363147393,1748598659064,-420.0,0.00022191,2]
[363147394,1748598659074,-715.33,0.00022191,2]
[363147395,1748598659084,-438.53,0.00022191,2]
[363147396,1748598659095,-1068.51,0.00022191,2]
[363147397,1748598659104,-620.28,0.00022191,2]
[363147398,1748598659115,-420.0,0.00022191,2]
[363147399,1748598659124,-1234.04,0.00022191,2]
[363147400,1748598659134,-608.81,0.00022191,2]
[363147401,1748598659144,-864.41,0.00022191,2]
[363147402,1748598659154,-1222.56,0.00022191,2]
[363147403,1748598659164,-875.57,0.00022191,2]
[363147404,1748598659174,-420.0,0.00022191,2]
[363147405,1748598659183,-1114.73,0.00022191,2]
[363147406,1748598659193,-1567.41,0.00022191,2]
[363147407,1748598659203,-420.0,0.00022191,2]
[363147408,1748598659215,-493.51,0.00022191,2]
[363147409,1748598659224,-568.2,0.00022191,2]
[363147410,1748598659235,-3890.11,0.00022191,2]
[363147411,1748598659245,-420.0,0.00022191,2]
[363147412,1748598659254,-425.35899265,0.00022191,2]
[363147413,1748598659264,-420.0,0.00022191,2]
[363147414,1748598659274,-1355.13,0.00022191,2]
[363147415,1748598659284,-2231.81,0.00022191,2]
[363147416,1748598659295,-742.78,0.00022191,2]
[363147417,1748598659305,-2872.57,0.00022191,2]
[363147418,1748598659315,-420.0,0.00022191,2]
[363147419,1748598659325,-420.0,0.00022191,2]
[363147420,1748598659335,-425.36307424,0.00022191,2]
[363147421,1748598659345,-747.21,0.00022191,2]
[363147422,1748598659355,-787.22,0.00022191,2]
[363147423,1748598659364,-420.0,0.00022191,2]
[363147424,1748598659374,-2108.09,0.00022191,2]
[363147425,1748598659384,-420.0,0.00022191,2]
[363147426,1748598659394,-420.0,0.00022191,2]
[363147427,1748598659404,-420.0,0.00022191,2]
[363147428,1748598659414,-664.97,0.00022191,2]
[363147429,1748598659425,-35156.06,0.00022191,2]
[363147430,1748598659434,-724.98,0.00022191,2]
[363147431,1748598659444,-1815.52,0.00022191,2]
[363147432,1748598659454,-6272.12,0.00022191,2]
[363147433,1748598659463,-420.0,0.00022191,2]
[363147434,1748598659473,-3160.9,0.00022191,2]
[363147435,1748598659483,-766.15,0.00022191,2]
[363147436,1748598659492,-970.29,0.00022191,2]
[363147437,1748598659502,-820.66,0.00022191,2]
[363147438,1748598659512,-427.44,0.00022191,2]
[363147439,1748598659522,-697.76,0.00022191,2]
[363147440,1748598659532,-1155.57,0.00022191,2]
[363147441,1748598659541,-3413.77,0.00022191,2]
[363147442,1748598659552,-580.84,0.00022191,2]
[363147443,1748598659562,-420.0,0.00022191,2]
[363147444,1748598659573,-420.0,0.00022191,2]
[363147445,1748598659582,-1547.86,0.00022191,2]
[363147446,1748598659592,-2076.95,0.00022191,2]
[363147447,1748598659602,-487.02,0.00022191,2]
[363147448,1748598659613,-523.64,0.00022191,2]
[363147449,1748598659622,-7036.43,0.00022191,2]
[363147450,1748598659633,-420.0,0.00022191,2]
[363147451,1748598659644,-1049.13,0.00022191,2]
[363147452,1748598659654,-986.88,0.00022191,2]
[363147453,1748598659663,-628.69,0.00022191,2]
[363147454,1748598659673,-858.24,0.00022191,2]
[363147455,1748598659683,-420.0,0.00022191,2]
[363147456,1748598659693,-543.48,0.00022191,2]
[363147457,1748598659703,-1267.24,0.00022191,2]
[363147458,1748598659712,-8528.06,0.00022191,2]
[363147459,1748598659722,-420.0,0.00022191,2]
[363147460,1748598659733,-1212.37,0.00022191,2]
[363147461,1748598659743,-925.43,0.00022191,2]
[363147462,1748598659754,-713.78,0.00022191,2]
[363147463,1748598659764,-482.28,0.00022191,2]
[363147464,1748598659777,-677.75,0.00022191,2]
[363147465,1748598659787,-420.0,0.00022191,2]
[363147466,1748598659799,-1391.71,0.00022191,2]
[363147467,1748598659809,-420.0,0.00022191,2]
[363147468,1748598659819,-420.0,0.00022191,2]
[363147469,1748598659828,-465.71,0.00022191,2]
[363147470,1748598659838,-1155.45,0.00022191,2]
[363147471,1748598659849,-794.17,0.00022191,2]
[363147472,1748598659859,-1572.41,0.00022191,2]
[363147473,1748598659869,-435.73,0.00022191,2]
[363147474,1748598659879,-420.0,0.00022191,2]
[363147475,1748598659889,-1082.01,0.00022191,2]
[363147476,1748598659899,-13426.33,0.00022191,2]
[363147477,1748598659909,-420.0,0.00022191,2]
[363147478,1748598659919,-593.17,0.00022191,2]
[363147479,1748598659929,-181.0,0.00022192,7]
[363147480,1748598659941,-170.34,0.00022192,2]
[363147481,1748598659952,-812.60848476,0.00022194,2]
[363147482,1748598659963,-9269.34,0.000222,7]
[363147483,1748598659973,-35000.0,0.000222,2]
[363147484,1748598659984,-739.48,0.000222,2]
[363147485,1748598659995,-250.0,0.00022206,2]
[363147486,1748598660005,-6656.04245345,0.00022215,2]
[363147487,1748598660015,-27952.41468225,0.00022215,2]
[363147488,1748598660025,-534.0,0.00022218,2]
[363147489,1748598660035,-500.0,0.00022218,2]
[363147490,1748598660047,-1164.0,0.00022218,2]
[363147491,1748598660059,-500.0,0.00022218,2]
[363147492,1748598660069,-812.60848476,0.00022221,2]
[363147493,1748598660079,-534.0,0.00022246,2]
[363147494,1748598660089,-500.0,0.00022246,2]
[363147495,1748598660099,-1164.0,0.00022246,2]
[363147496,1748598660109,-500.0,0.00022246,2]
[363147497,1748598660119,-160.78531053,0.00022247,2]
[363147498,1748598660129,-812.60848476,0.00022248,2]
[363147499,1748598660140,-6656.04245345,0.00022272,2]
[363147500,1748598660150,-27952.41468225,0.00022272,2]
[363147501,1748598660160,-534.0,0.00022273,2]
[363147502,1748598660170,-500.0,0.00022273,2]
[363147503,1748598660179,-1164.0,0.00022273,2]
[363147504,1748598660189,-500.0,0.00022273,2]
[363147505,1748598660199,-812.60848476,0.00022275,2]
[363147506,1748598660209,-150.0,0.00022285,2]
[363147507,1748598660219,-150.0,0.00022285,2]
[363147508,1748598660229,-952.0,0.000223,2]
[363147509,1748598660239,-534.0,0.00022301,2]
[363147510,1748598660249,-500.0,0.00022301,2]
[363147511,1748598660259,-1164.0,0.00022301,2]
[363147512,1748598660270,-500.0,0.00022301,2]
[363147513,1748598660279,-812.60848476,0.00022302,2]
[363147514,1748598660289,-941.0,0.00022313,2]
[363147515,1748598660301,-1314.0,0.00022313,2]
[363147516,1748598660310,-634.0,0.00022313,2]
[363147517,1748598660320,-801.0,0.00022313,2]
[363147518,1748598660329,-1155.0,0.00022313,2]
[363147519,1748598660339,-924.0,0.00022313,2]
[363147520,1748598660348,-1268.0,0.00022313,2]
[363147521,1748598660358,-588.0,0.00022313,2]
[363147522,1748598660368,-1466.0,0.00022313,2]
[363147523,1748598660378,-556.0,0.00022313,2]
[363147524,1748598660387,-4068.0,0.00022313,2]
[363147525,1748598660396,-155.0,0.00022313,2]
[363147526,1748598660406,-6929.0,0.00022313,2]
[363147527,1748598660416,-882.0,0.00022313,2]
[363147528,1748598660425,-4085.66164921,0.00022314,7]
[363147529,1748598660435,-534.0,0.00022328,2]
[363147530,1748598660445,-550.06583139,0.00022328,2]
[363147531,1748598660454,-1164.0,0.00022328,2]
[363147532,1748598660464,-500.0,0.00022328,2]
[363147533,1748598660474,-160.78531053,0.00022329,2]
[363147534,1748598660483,-212.1468827,0.00022329,4]
[363147535,1748598660493,-270.83255412,0.00022329,2]
[363147536,1748598660503,-171.10391972,0.00022329,2]
[363147537,1748598660512,-1455.45039492,0.00022329,2]
[363147538,1748598660522,-6656.04245345,0.00022329,2]
[363147539,1748598660532,-27952.41468225,0.00022329,2]
[363147540,1748598660542,-812.60848476,0.00022329,2]
[363147541,1748598660555,-534.0,0.00022355,2]
[363147542,1748598660566,-1164.0,0.00022355,2]
[363147543,1748598660575,-500.0,0.00022355,2]
[363147544,1748598660586,-534.0,0.00022383,2]
[363147545,1748598660596,-1164.0,0.00022383,2]
[363147546,1748598660606,-500.0,0.00022383,2]
[363147547,1748598660616,-534.0,0.0002241,2]
[363147548,1748598660626,-1164.0,0.0002241,2]
[363147549,1748598660637,-368.42756046,0.0002241,2]
[363147550,1748598660648,-160.78531053,0.00022411,2]
[363147551,1748598660659,-182.30982529,0.0002242,2]
[363147552,1748598660668,-300.0,0.00022428,2]
[363147553,1748598660678,-300.0,0.00022428,2]
[363147554,1748598660688,-300.0,0.00022428,2]
[363147555,1748598660698,-300.0,0.00022428,2]
[363147556,1748598660707,-300.0,0.00022428,2]
[363147557,1748598660717,-300.0,0.00022428,2]
[363147558,1748598660727,-310.28425939,0.00022429,2]
[363147559,1748598660737,-300.0,0.00022429,2]
[363147560,1748598660747,-300.0,0.00022429,2]
[363147561,1748598660756,-300.0,0.00022429,2]
[363147562,1748598660769,-300.0,0.00022429,2]
[363147563,1748598660778,-300.0,0.00022429,2]
[363147564,1748598660788,-300.0,0.00022429,2]
[363147565,1748598660797,-835.49918477,0.00022429,2]
[363147566,1748598660807,-216179.90958675,0.00022429,2]
[363147567,1748598661325,-3000.0,0.00022429,2]
[363147568,1748598661336,-900.17719714,0.00022429,2]
[363147569,1748598661348,-2386.36463944,0.00022429,2]
[363147570,1748598661359,-2432.26839026,0.00022429,2]
[363147571,1748598661370,-8420.7190963,0.00022429,2]
[363147572,1748598661381,-11702.22217111,0.00022429,2]
[363147573,1748598661392,-678.42001266,0.00022429,2]
[363147574,1748598661403,-345.1455085,0.00022429,2]
[363147575,1748598661414,-1777.75,0.00022429,2]
[363147576,1748598661445,-1526.92330848,0.00022429,2]
[363147577,1748598661456,-1137.76157372,0.00022429,2]
[363147578,1748598661467,-645.98702758,0.00022429,2]
[363147579,1748598661478,-2123.19783396,0.00022429,2]
[363147580,1748598661488,-12827.24263431,0.00022429,2]
[363147581,1748598661499,-1021.44805556,0.00022429,2]
[363147582,1748598661513,-1198.29359003,0.00022429,2]
[363147583,1748598661524,-4210.41481723,0.00022429,2]
[363147584,1748598661535,-64080.5,0.00022429,2]
[363147585,1748598661547,-250.00000015,0.00022429,2]
[363147586,1748598662580,-420.0,0.00021917,2]
[363147587,1748598662590,-302.0,0.00021917,2]
[363147588,1748598662600,-848.0,0.00022313,2]
[363147589,1748598662610,-218.38659983,0.00022429,2]
[363147590,1748598662622,-584714.0230799,0.00022429,2]
[363147591,1748598662633,-3239.04840292,0.00022429,2]
[363147592,1748598662734,-428.92727091,0.00022429,2]
[363147593,1748598662892,-420.0,0.00022191,2]